Cogmind - Beta 16.1 @@@ ROGUE MODE // 2026.03.30 @ 13:57:42 Player: konomiyu Result: Destroyed by as-04402 with Assembled Blade Performance ------------- Evolutions (0) 0 Regions Visited (4) 800 Robots Destroyed (38) 190 Value Destroyed (830) 830 Prototype IDs (4) 80 Alien Tech Used (0) 0 Bonus (0) 0 TOTAL SCORE: 1900 Bonus ------- None Cogmind --------- Core Integrity 0/250 Matter 262/300 Energy 265/265 System Corruption 2% Temperature Cool (4) Movement Treading (160) Location -9/Mines Parts ------- > --- POWER (1) -------- Improved Ion Engine > --- PROPULSION (2) --- Light Treads Light Treads > --- UTILITY (2) ------ Seismic Detector (fused) > --- WEAPON (2) ------- Autogun Autogun > --- INVENTORY (5) ---- Signal Interpreter Makeshift Hacking Suite Mining Claw Peak State ------------ > --- POWER ------------ Improved Ion Engine > --- PROPULSION ------- Light Treads Aluminum Leg > --- UTILITY ---------- Large Storage Unit Seismic Detector > --- WEAPON ----------- Autogun Autogun > --- INVENTORY -------- Improved Ion Engine Improved Ion Engine Aluminum Leg Improved Heat Sink Medium Storage Unit Signal Interpreter Improved Terrain Scanner Hacking Suite Autogun Grenade Launcher Datajack Hammer [Rating: 12] Favorites ----------- Power Improved Ion Engine Engine Improved Ion Engine Propulsion Light Treads Treads Light Treads Leg Aluminum Leg Utility Seismic Detector Device Seismic Detector Storage Large Storage Unit Weapon Small Laser Energy Gun Small Laser Ballistic Gun Autogun Launcher Grenade Launcher Slashing Weapon Mining Claw Build | -11 -10 -10 -10 -9 ------- Run | Yrd Mat Min Exi Min Slots Evolved . | . . . . . Power . | . . . . . Propulsion . | . . . . . Utility . | . . . . . Weapon . | . . . . . Parts Attached 23 | 7 9 3 3 1 Power 4 | 1 3 . . . Engine 4 | 1 3 . . . Core . | . . . . . Reactor . | . . . . . Propulsion 7 | 2 2 1 2 . Treads 5 | 2 1 . 2 . Leg 2 | . 1 1 . . Wheel . | . . . . . Hover . | . . . . . Flight . | . . . . . Utility 3 | 2 1 . . . Device 1 | 1 . . . . Storage 2 | 1 1 . . . Processor . | . . . . . Hackware . | . . . . . Protection . | . . . . . Artifact . | . . . . . Weapon 9 | 2 3 2 1 1 Energy Gun 3 | 2 1 . . . Energy Cannon . | . . . . . Ballistic Gun 4 | . 2 1 . 1 Ballistic Cannon . | . . . . . Launcher 1 | . . 1 . . Special Weapon . | . . . . . Impact Weapon . | . . . . . Slashing Weapon 1 | . . . 1 . Piercing Weapon . | . . . . . Special Melee Weapon . | . . . . . Unidentified Prototypes . | . . . . . Parts Lost 7 | . 6 1 . . Power 2 | . 2 . . . Propulsion 3 | . 2 1 . . Utility . | . . . . . Weapon 2 | . 2 . . . Highest Loss Streak 2 | . 2 1 . . To Critical Strikes 1 | . . 1 . . Average Backups 11 | 3 10 14 14 14 Power 1 | . 1 2 2 2 Propulsion 1 | 1 1 . . . Utility 4 | . 4 6 5 7 Weapon 3 | . 2 5 5 4 Tool/Special . | . . . . . Unused Backups 12 | . . . 2 10 Power 2 | . . . . 2 Propulsion . | . . . . . Utility 8 | . . . 1 7 Weapon 1 | . . . 1 . Tool/Special 1 | . . . . 1 Average Slot Usage (%) 89 | . 93 100 77 98 Engine 13 | . 13 14 14 14 Treads 14 | . 19 12 3 28 Leg 11 | . 4 15 24 . Device 14 | . 14 14 14 14 Storage 13 | . 14 14 14 12 Energy Gun 13 | . 21 . . . Ballistic Gun 4 | . 4 24 . 26 Slashing Weapon 1 | . . . 6 1 Peak Build Rating 12 | 7 12 12 10 12 Average Rating 8 | 5 8 11 8 11 On Entrance 8 | . 7 12 11 10 Avg Prop Armor Cover (%) 7 | . 8 7 . . Naked Turns . | . . . . . Heaviest Build 34 | 14 34 34 30 34 Greatest Support 40 | 40 40 20 40 40 Greatest Overweight (x) 1 | . 1 1 1 . Average Overweight (x) . | . . 1 . . Largest Inventory Capacity 15 | 8 15 15 15 15 Average Capacity 14 | 7 14 15 15 14 Most Carried 15 | 5 15 15 15 14 Average Carried 11 | 3 10 14 14 13 Final Capacity 15 | 8 15 15 15 5 Final Carried 15 | 5 15 14 15 3 Class Distribution -------------------- 100% | Mutant Dominant Class ---------------- Mutant | -10/Materials Mutant | -10/Mines Mutant | -10/Exiles Mutant | -9/Mines Resources | -11 -10 -10 -10 -9 ----------- Run | Yrd Mat Min Exi Min Matter Collected 611 | 270 104 55 140 42 Remotely . | . . . . . Salvage Created 1497 | 152 1014 95 194 42 Parts 77 | 9 42 12 10 4 Haulers Intercepted 2 | . 2 . . . Recyclers Shooed . | . . . . . Parts Field Recycled . | . . . . . Retrieved Matter . | . . . . . Parts Self-Destructed . | . . . . . Prevented . | . . . . . Parts Restored . | . . . . . Kills | -11 -10 -10 -10 -9 ------- Run | Yrd Mat Min Exi Min Combat Hostiles Destroyed 22 | . 13 5 1 3 Melee 1 | . . . 1 . Guns 17 | . 13 1 . 3 AOE 4 | . . 4 . . Classes Destroyed 10 | 2 5 2 1 . Worker 2 | . 2 . . . Builder 1 | . . 1 . . Tunneler 3 | 3 . . . . Hauler 2 | . 2 . . . Recycler 3 | 1 2 . . . Operator 3 | . 3 . . . Watcher 2 | . 2 . . . Swarmer 6 | . . 3 . 3 Grunt 15 | . 13 2 . . Hunter 1 | . . . 1 . Best Kill Streak 4 | 2 3 4 1 3 Combat Bots Only 3 | . 2 3 1 3 Max Kills in Single Turn 4 | 1 1 4 1 1 Gunslinging . | . . . . . Exploded 2 | . . 2 . . Melee 1 | . . . 1 . Uniques/NPCs Destroyed . | . . . . . Combat | -11 -10 -10 -10 -9 -------- Run | Yrd Mat Min Exi Min Hostile Shots Fired 129 | . 87 12 . 30 Missed 25 | . 15 4 . 6 Hits 104 | . 72 8 . 24 Melee 1 | . . . . 1 Projectile 103 | . 72 8 . 23 Critical Strikes 1 | . . 1 . . Part Disruptions 1 | . . . . 1 Damage Taken 1329 | . 981 77 . 271 Core 271 | . 163 14 . 94 Absorbed by Shields . | . . . . . Core Remaining (%) 100 | 100 . . . . Volleys Fired 121 | 10 100 4 . 7 Largest 2 | 2 2 2 . 2 Hottest 90 | 90 90 53 . 46 Shots Fired 226 | 20 185 8 . 13 Gun 222 | 20 185 4 . 13 Cannon . | . . . . . Launcher 4 | . . 4 . . Special . | . . . . . Kinetic 22 | . 5 4 . 13 Thermal 200 | 20 180 . . . Explosive 4 | . . 4 . . Electromagnetic . | . . . . . Robot Hit Streak 15 | 7 15 2 . 2 Robot Miss Streak 5 | 4 5 2 . 2 Penetration Max . | . . . . . Secondary Targets 2 | . 1 . . 1 Max Gunslinging Chain 1 | . 1 . . 1 Shots Hit Robots 154 | 13 114 3 17 7 Core Hits 68 | 5 48 9 3 3 Critical Kills . | . . . . . Critical Parts Destroyed . | . . . . . Critical Strikes 7 | . 7 . . . Burn 7 | . 7 . . . Melee Attacks 18 | . . . 18 . Impact . | . . . . . Slashing 18 | . . . 18 . Piercing . | . . . . . Sneak Attacks 1 | . . . 1 . Combat Hostiles . | . . . . . Follow-up Attacks . | . . . . . Damage Inflicted 2674 | 167 1353 296 752 106 Guns 1637 | 167 1351 13 . 106 Cannons . | . . . . . Explosions 283 | . . 283 . . Melee 752 | . . . 752 . Ramming 2 | . 2 . . . Kinetic 134 | . 15 13 . 106 Thermal 1503 | 167 1336 . . . Explosive 283 | . . 283 . . Electromagnetic . | . . . . . Impact . | . . . . . Slashing 752 | . . . 752 . Piercing . | . . . . . Highest Corruption 2 | . 2 2 2 2 Average Corruption 2 | . 2 2 2 2 Corruption Purged . | . . . . . Corruption Blocked . | . . . . . Effects 43 | . 26 3 13 1 Message Errors 9 | . 7 1 1 . Matter Fused 9 | . 6 1 2 . Heat Flow Errors 4 | . 2 . 2 . Energy Discharges 9 | . 4 . 4 1 Parts Fused 2 | . 2 . . . Data Loss (minor) 5 | . 2 1 2 . Data Loss (major) 4 | . 2 . 2 . Misfires 1 | . 1 . . . Overload Shots . | . . . . . Overflow Damage 101 | . . 6 95 . Projectiles . | . . . . . Explosions 6 | . . 6 . . Melee 95 | . . . 95 . Knockbacks 1 | . 1 . . . Impact 1 | . 1 . . . Kinetic . | . . . . . Secondary . | . . . . . Self-Inflicted Damage . | . . . . . Shots . | . . . . . Rammed 3 | . 3 . . . Targets Rammed 3 | . 3 . . . Kicked . | . . . . . Crushed . | . . . . . Highest Temperature 526 | 90 526 29 255 16 Average Temperature 95 | 34 105 16 124 7 Received Heat Transfer 597 | . 522 15 . 60 Effects 9 | . 9 . . . Shutdowns 1 | . 1 . . . Energy Bleed 1 | . 1 . . . Interference 3 | . 3 . . . Damage (major) 3 | . 3 . . . Damage (core) 1 | . 1 . . . Siege Activations . | . . . . . Martial Activations . | . . . . . Shielding Activations . | . . . . . Robots Disrupted . | . . . . . Combat Hostiles . | . . . . . Robots Corrupted . | . . . . . Combat Hostiles . | . . . . . Parts Fried . | . . . . . Impact Corruptions . | . . . . . Robots Melted . | . . . . . Combat Hostiles . | . . . . . Parts Melted 14 | . 14 . . . Heat Transferred 4296 | 446 3850 . . . Parts Sabotaged . | . . . . . Parts Stolen . | . . . . . Parts Stripped . | . . . . . Power Chain Reactions . | . . . . . Alert | -11 -10 -10 -10 -9 ------- Run | Yrd Mat Min Exi Min Maximum Alert Level . | . . . . . Low Security (%) 100 | 100 100 100 . 100 Level 1 . | . . . . . Level 2 . | . . . . . Level 3 . | . . . . . Level 4 . | . . . . . Level 5 . | . . . . . High Security . | . . . . . Max Security . | . . . . . Peak Influence 85 | 5 83 81 . 85 Initial 10 | . . 10 . . Average 17 | . 16 29 . 58 Influence Increases 737 | 20 465 142 25 85 Destroy 0b10 Robot/C 440 | . 260 100 20 60 Destroy 0b10 Robot/NC 85 | 20 55 5 5 . Destroy Leader 108 | . 78 20 . 10 Successful Hack 10 | . 10 . . . Select Force Hacks 60 | . 60 . . . Disable Machine 15 | . . . . 15 Destroy Structure 19 | . 2 17 . . Influence Decreases 692 | 20 437 99 96 40 Entered New Map 89 | . . 18 71 . Time Decay 581 | 20 415 81 25 40 Lost Part 22 | . 22 . . . Squads Dispatched 4 | . 4 . . . Investigation 2 | . 2 . . . Extermination . | . . . . . Reinforcement 2 | . 2 . . . Assault . | . . . . . Garrison . | . . . . . Intercept . | . . . . . Searches Triggered . | . . . . . Construction Impeded . | . . . . . Haulers Reinforced . | . . . . . Active Scanning Responses . | . . . . . Cargo Convoy Interrupts . | . . . . . Stealth | -11 -10 -10 -10 -9 --------- Run | Yrd Mat Min Exi Min Distress Signals 3 | . 3 . . . Communications Jammed . | . . . . . Distress Signals . | . . . . . Times Spotted 52 | . 24 5 . 23 Peak Tracking Total 20 | . 4 3 . 20 Tactical Retreats . | . . . . . Traps | -11 -10 -10 -10 -9 ------- Run | Yrd Mat Min Exi Min Traps Triggered 1 | . 1 . . . Indirectly . | . . . . . Trap Hack Attempts . | . . . . . Triggered . | . . . . . Disarmed . | . . . . . Reprogrammed . | . . . . . Reused . | . . . . . Traps Extracted . | . . . . . Installed . | . . . . . Triggered . | . . . . . Machines | -11 -10 -10 -10 -9 ---------- Run | Yrd Mat Min Exi Min Machines Disabled 1 | . . . . 1 Max in Single Turn 1 | . . . . 1 Machines Repaired . | . . . . . Machines Dismantled . | . . . . . Machines Sabotaged . | . . . . . Overloaded Fab Kills . | . . . . . Hacking | -11 -10 -10 -10 -9 --------- Run | Yrd Mat Min Exi Min Machines Accessed 9 | . 8 . 1 . Terminals 6 | . 6 . . . Fabricators . | . . . . . Repair Stations . | . . . . . Recycling Units 2 | . 2 . . . Scanalyzers . | . . . . . Garrison Access . | . . . . . Total Hacks 22 | . 18 . 4 . Successful 11 | . 7 . 4 . Failed 10 | . 10 . . . Catastrophic 3 | . 3 . . . Database Lockouts 1 | . 1 . . . Manual 13 | . 11 . 2 . Terminals 16 | . 16 . . . Fabricators . | . . . . . Repair Stations . | . . . . . Recycling Units 2 | . 2 . . . Scanalyzers . | . . . . . Garrison Access . | . . . . . Terminal Hacks 8 | . 4 . 4 . Record 4 | . . . 4 . Prototype ID Bank 2 | . 2 . . . Dispatch Records 1 | . 1 . . . Registered Components 1 | . 1 . . . Fabricator Hacks . | . . . . . Repair Station Hacks . | . . . . . Recycling Unit Hacks . | . . . . . Scanalyzer . | . . . . . Garrison Access Hacks . | . . . . . Unauthorized Hacks 3 | . 3 . . . Terminals 1 | . 1 . . . Operators 1 | . 1 . . . Fabricators . | . . . . . Repair Stations . | . . . . . Recycling Units 2 | . 2 . . . Tunnel 2 | . 2 . . . Scanalyzers . | . . . . . Garrison Access . | . . . . . Data Cores Recovered 1 | . 1 . . . Used 1 | . 1 . . . Hacking Detections 6 | . 6 . . . Full Trace Events . | . . . . . Feedback Events . | . . . . . Feedback Blocked . | . . . . . Robot Schematics Acquired . | . . . . . Robots Built . | . . . . . Authchips . | . . . . . Time . | . . . . . Total Robot Build Rating . | . . . . . Part Schematics Acquired . | . . . . . Parts Built . | . . . . . Authchips . | . . . . . Time . | . . . . . Total Part Build Rating . | . . . . . Part Studies Acquired . | . . . . . Parts Repaired . | . . . . . Time . | . . . . . Parts Recycled . | . . . . . Recycled Matter . | . . . . . Retrieved Matter . | . . . . . Retrieved Components . | . . . . . Parts Scanalyzed . | . . . . . Part Schematics Acquired . | . . . . . Parts Damaged . | . . . . . Bothacking | -11 -10 -10 -10 -9 ------------ Run | Yrd Mat Min Exi Min Used RIF Installer . | . . . . . Robots Hacked . | . . . . . Non-combat . | . . . . . Combat . | . . . . . Robot Hacks Applied . | . . . . . Relay Couplers Released . | . . . . . Fabnet Peak Effective % . | . . . . . Robots Rewired . | . . . . . Allies Hacked . | . . . . . Hacks Repelled . | . . . . . Allies | -11 -10 -10 -10 -9 -------- Run | Yrd Mat Min Exi Min Total Allies . | . . . . . Largest Group . | . . . . . Highest-Rated Group . | . . . . . Highest-Rated Ally . | . . . . . Total Orders . | . . . . . Ally Attacks . | . . . . . Total Damage . | . . . . . Kills . | . . . . . Allies Corrupted . | . . . . . Allies Melted . | . . . . . Intel | -11 -10 -10 -10 -9 ------- Run | Yrd Mat Min Exi Min Active Infowar (turns) 3690 | 53 2158 206 1184 89 Seismic 3690 | 53 2158 206 1184 89 Robot Analysis Total . | . . . . . Derelict Logs Recovered 2 | . . 2 . . Drone Launches . | . . . . . Drone Recoveries . | . . . . . Exploration | -11 -10 -10 -10 -9 ------------- Run | Yrd Mat Min Exi Min Turns Passed 4120 | 182 2459 206 1184 89 Spaces Moved 1731 | 88 916 82 603 42 Core 3 | 3 . . . . Treads 1194 | 85 916 70 81 42 Legs 534 | . . 12 522 . Wheels . | . . . . . Hover . | . . . . . Flight . | . . . . . Fastest Speed 50 | 50 160 190 160 160 Average Speed 195 | 156 204 232 186 160 Slowest Speed 240 | 160 240 240 240 160 Overloaded Moves . | . . . . . Propulsion Burnouts . | . . . . . Robots Hopped . | . . . . . Potential Cave-ins . | . . . . . Cave-ins Triggered . | . . . . . Exploration Rate (%) 45 | 5 98 18 90 15 Regions Visited 4 Branch Regions 3 Pre-discovered Areas 3 | . 2 . 1 . Known Exits Taken . | . . . . . Unknown Exits Taken 4 | 1 1 1 1 . Scrap Searched . | . . . . . Spaces Dug . | . . . . . Terrain Destroyed 17 | . . 17 . . Melee . | . . . . . Projectile . | . . . . . AOE 17 | . . 17 . . Terrain Rammed . | . . . . . Walls Destroyed . | . . . . . Machines Disabled . | . . . . . Actions | -11 -10 -10 -10 -9 --------- Run | Yrd Mat Min Exi Min Total 2198 | 110 1315 89 630 54 Wait 272 | . 272 . . . Move 1727 | 87 915 81 602 42 Hop . | . . . . . Pick Up 20 | 6 13 . 1 . Fast Attach 8 | 6 2 . . . Attach 8 | 1 4 1 1 1 Detach 2 | . . . 2 . Swap 11 | . 4 3 3 1 Drop 8 | . 2 . 3 3 Fire 121 | 10 100 4 . 7 Melee 18 | . . . 18 . Ram . | . . . . . Kick . | . . . . . Crush 3 | . 3 . . . Escape Stasis . | . . . . . Rewire . | . . . . . Trap . | . . . . . Miscellaneous . | . . . . . Route ------- -11/Scrapyard -10/Materials (discovered 6 exits: [*Mat x3] / [*Min x2] / [*Sub]) -10/Mines -10/Exiles (discovered 2 exits: [*Min x2]) -9/Mines History --------- Turn | Location | Event 26 | -11/Scrapyard | Discovered new exit (range 16) 183 | -11/Scrapyard | Entered Materials 268 | -10/Materials | Discovered new exit (range 7) 315 | -10/Materials | Build established: Mutant 605 | -10/Materials | Discovered new exit (range 8) 852 | -10/Materials | Discovered new exit (range 16) 930 | -10/Materials | Central database locked down 1038 | -10/Materials | Discovered new exit (range 13) 1689 | -10/Materials | Core integrity fell below 50% 2151 | -10/Materials | Discovered new exit (range 15) 2582 | -10/Materials | Discovered new exit (range 11) 2642 | -10/Materials | Entered Mines 2699 | -10/Mines | Learned 4 Materials zone layouts 2733 | -10/Mines | Learned Materials stockpile data 2781 | -10/Mines | Deemed a non-threat by the Exiles lab entrance 2783 | -10/Mines | Discovered new exit (range 5) 2848 | -10/Mines | Entered Exiles 2848 | -10/Exiles | Found Exiles lab destroyed 2890 | -10/Exiles | Discovered new exit (range 14) 3070 | -10/Exiles | Learned location of Zion (-6) 3722 | -10/Exiles | Discovered new exit (range 11) 4032 | -10/Exiles | Entered Mines 4100 | -9/Mines | Assembled infested the area 4120 | -9/Mines | Core integrity fell below 20% 4121 | -9/Mines | Destroyed by as-04402 with Assembled Blade Last Messages --------------- 04007_ System corrupted: Matter fused (-8). 04028_ System corrupted: Component data lost. LOCATION=UNKNOWN GOAL=ESCAPE 04037_ S-10 Pest destroyed. 04037_ Switching to secondary target: S-10 Pest. 04039_ Pulverizer disabled. 04039_ S-10 Pest destroyed. 04045_ Destroyed Flight Unit. 04050_ S-10 Pest destroyed. 04054_ Acquired 18 matter. 04062_ Acquired 14 matter. 04068_ Acquired 10 matter. 04076_ System corrupted: Energy discharge (-79). 04100_ ALERT: Infestation in the mines, dispatching Demolisher response squad. [Achievement: Hunted] 04118_ Dropped Lrg. Storage Unit. 04119_ Dropped Weight Redist. System. 04119_ Dropped Imp. Ion Engine. Map ----- +----------------------------------------------------+ | | | | | | | | | | | | | | | | | | | | | | | | | | | ??????????????????????????????????????????? | | ###########???????????????????????????????? | | [ * #???????????????????????????????? | | = """ #???????????????????????????????? | | """ #???????????????????????????????? | | * "" #???????????????????????????????? | | """ #??????????????????###??????????? | | #?????????????????# ##?????????? | | ## ########????????????????# #?????????? | | ?# #??????????????????????# #?????????? | | ?# #???????????????????### ##????????? | | ?# #??????????????????## !a a ## #??? | | ?# #????????####?????## !@aa aaa a #?? | | ## ########## ####?## [!!a* a aa #?? | | ### *!### aaaaa< #?? | | ###???## aaa #??? | | ########### ##????????? ##??? | | ??????????# ##????????????####???? | | ??????????## ##????????????????????? | | ???????????# ##?????????????????????? | | ???????????# #??????????????????????? | | ???????????## #??????????????????????? | | ????????????## #?????????????????????? | | ?????????????## ????????????????????? | | ??????????????## ????????????????????? | | ???????????????## ???????????????????? | | ????????????????### ???????????????????? | | ???????????????????# ????????????????????? | | ???????????????????? ?????????????????????? | | ??????????????????????????????????????????? | | ??????????????????????????????????????????? | | ??????????????????????????????????????????? | | ??????????????????????????????????????????? | | ??????????????????????????????????????????? | | ??????????????????????????????????????????? | | ??????????????????????????????????????????? | | ??????????????????????????????????????????? | +----------------------------------------------------+ Best States ------------- Heat Dissipation 25 Energy Generation 12 Energy Capacity 265 Matter Stores 300 Matter Capacity 300 Sight Range 16 Terrain Scan Density 10 Evasion (%) 40 Recoil Reduction 2 Item Schematics ----------------- None Robot Schematics ------------------ None Fabricated ------------ Nothing Repaired ---------- Nothing Studied --------- None Alien Tech Used ----------------- None Achievements -------------- Hunted Challenges ------------ None Game ------ Seed GravjetHypercooledJammer Manual? 0 Play Time 00:24:23 Cumulative 30.7 hours Start 2026.03.30 @ 13:33:10 End 2026.03.30 @ 13:57:42 Sessions 1 Manual Loads 0 Difficulty Rogue Special Mode None Game No. 34 Rogue 34 Adventurer 0 Explorer 0 Win Type - Total 0 Types 0/0/0/0/0/0/0/0/0/0 Lore% 24 Gallery% 20 Achievement% 16 Wizard Run 0 Options --------- Layout 1 ASCII 0 Keyboard 1 Movement Vi Keybinds 0 Fullscreen 2 Font 24/Smallcaps Map View 50x35 Zoom Use 0% Tactical HUD 1 Map Filters NONE Filters NONE Steam 1 RUN: f113799f-35b7-43a4-8fa6-bfcd4180256e